[Event "Titled Tuesday Blitz May 9 Late 2023"]
[White "Figorito, Nick"]
[Black "Sanhueza, Cristian"]
[WhiteFideId "30923689"]
[BlackFideId "116815"]
[WhiteElo "2364"]
[BlackElo "2174"]
[Result "1-0"]
[Round "09"]
[TimeControl "180+2"]
[Date "2023.05.09"]
[WhiteClock "0:00:15"]
[BlackClock "0:00:30"]

1. Nf3 {[%clk 0:03:00]}  Nf6 {[%clk 0:03:00]} 2. g3 {[%clk 0:03:01]}  g6 {[%clk 0:02:59]} 3. Bg2 {[%clk 0:03:02]}  Bg7 {[%clk 0:02:59]} 4. O-O {[%clk 0:03:02]}  O-O {[%clk 0:03:00]} 5. c4 {[%clk 0:03:03]}  d6 {[%clk 0:03:00]} 6. Nc3 {[%clk 0:03:03]}  Nc6 {[%clk 0:03:01]} 7. d3 {[%clk 0:03:04]}  e5 {[%clk 0:02:59]} 8. Rb1 {[%clk 0:03:04]}  a5 {[%clk 0:02:58]} 9. a3 {[%clk 0:03:03]}  h6 {[%clk 0:02:56]} 10. b4 {[%clk 0:03:03]}  axb4 {[%clk 0:02:56]} 11. axb4 {[%clk 0:03:04]}  Be6 {[%clk 0:02:57]} 12. b5 {[%clk 0:03:04]}  Ne7 {[%clk 0:02:57]} 13. Ne1 {[%clk 0:03:03]}  d5 {[%clk 0:02:57]} 14. cxd5 {[%clk 0:03:03]}  Nexd5 {[%clk 0:02:58]} 15. Nxd5 {[%clk 0:03:02]}  Bxd5 {[%clk 0:02:59]} 16. Bb2 {[%clk 0:02:55]}  Re8 {[%clk 0:02:52]} 17. Qc2 {[%clk 0:02:45]}  Qd6 {[%clk 0:02:42]} 18. Bxd5 {[%clk 0:02:26]}  Nxd5 {[%clk 0:02:43]} 19. Nf3 {[%clk 0:02:21]}  Nb4 {[%clk 0:02:38]} 20. Qb3 {[%clk 0:02:19]}  e4 {[%clk 0:02:37]} 21. Bxg7 {[%clk 0:01:54]}  Kxg7 {[%clk 0:02:37]} 22. Qxb4 {[%clk 0:01:44]}  exf3 {[%clk 0:02:37]} 23. Qxd6 {[%clk 0:01:40]}  cxd6 {[%clk 0:02:37]} 24. exf3 {[%clk 0:01:40]}  Ra3 {[%clk 0:02:37]} 25. Rfe1 {[%clk 0:01:26]}  Kf8 {[%clk 0:02:17]} 26. Rxe8+ {[%clk 0:01:14]}  Kxe8 {[%clk 0:02:18]} 27. Rc1 {[%clk 0:00:56]}  Rb3 {[%clk 0:02:11]} 28. Rc8+ {[%clk 0:00:43]}  Kd7 {[%clk 0:02:11]} 29. Rf8 {[%clk 0:00:42]}  Ke7 {[%clk 0:02:11]} 30. Rh8 {[%clk 0:00:42]}  h5 {[%clk 0:02:05]} 31. g4 {[%clk 0:00:40]}  Rxb5 {[%clk 0:02:02]} 32. Kg2 {[%clk 0:00:36]}  Rd5 {[%clk 0:01:59]} 33. h4 {[%clk 0:00:33]}  b5 {[%clk 0:01:51]} 34. Rb8 {[%clk 0:00:31]}  Ke6 {[%clk 0:01:49]} 35. Rb7 {[%clk 0:00:30]}  Rd4 {[%clk 0:01:35]} 36. g5 {[%clk 0:00:29]}  b4 {[%clk 0:01:31]} 37. Kg3 {[%clk 0:00:28]}  Kd5 {[%clk 0:01:15]} 38. Rxf7 {[%clk 0:00:28]}  b3 {[%clk 0:01:15]} 39. Rb7 {[%clk 0:00:28]}  Rxd3 {[%clk 0:01:16]} 40. Kf4 {[%clk 0:00:26]}  Rd4+ {[%clk 0:01:08]} 41. Ke3 {[%clk 0:00:25]}  Rxh4 {[%clk 0:01:01]} 42. Rxb3 {[%clk 0:00:25]}  Rc4 {[%clk 0:01:01]} 43. Rb8 {[%clk 0:00:23]}  Rc3+ {[%clk 0:01:00]} 44. Kf4 {[%clk 0:00:23]}  Rc4+ {[%clk 0:01:00]} 45. Kg3 {[%clk 0:00:23]}  h4+ {[%clk 0:00:56]} 46. Kh3 {[%clk 0:00:22]}  Ke5 {[%clk 0:00:56]} 47. Rf8 {[%clk 0:00:21]}  Rf4 {[%clk 0:00:54]} 48. Re8+ {[%clk 0:00:19]}  Kf5 {[%clk 0:00:53]} 49. Rd8 {[%clk 0:00:18]}  Rd4 {[%clk 0:00:50]} 50. f4 {[%clk 0:00:14]}  Kxf4 {[%clk 0:00:48]} 51. Kxh4 {[%clk 0:00:13]}  Kf3+ {[%clk 0:00:48]} 52. Kh3 {[%clk 0:00:12]}  Kxf2 {[%clk 0:00:46]} 53. Rg8 {[%clk 0:00:13]}  Rd3+ {[%clk 0:00:42]} 54. Kg4 {[%clk 0:00:13]}  Rd4+ {[%clk 0:00:35]} 55. Kh3 {[%clk 0:00:13]}  Kf3 {[%clk 0:00:33]} 56. Rxg6 {[%clk 0:00:12]}  Rf4 {[%clk 0:00:33]} 57. Rf6 {[%clk 0:00:11]}  d5 {[%clk 0:00:30]} 58. Rxf4+ {[%clk 0:00:10]}  Kxf4 {[%clk 0:00:31]} 59. g6 {[%clk 0:00:11]}  d4 {[%clk 0:00:31]} 60. g7 {[%clk 0:00:12]}  d3 {[%clk 0:00:32]} 61. g8=Q {[%clk 0:00:13]}  d2 {[%clk 0:00:32]} 62. Qb3 {[%clk 0:00:13]}  Ke4 {[%clk 0:00:32]} 63. Qd1 {[%clk 0:00:13]}  Ke3 {[%clk 0:00:33]} 64. Kg2 {[%clk 0:00:14]}  Kd3 {[%clk 0:00:34]} 65. Kf2 {[%clk 0:00:15]}  Kc3 {[%clk 0:00:30]} 66. Ke2 {[%clk 0:00:15]} 1-0


[Site "https://www.chess.com"]

[Event "Titled Tuesday Blitz May 9 Late 2023"]
[White "Ansh M Shah"]
[Black "Moral Garcia, Serafin"]
[WhiteFideId "25033379"]
[BlackFideId "2201925"]
[WhiteElo "2084"]
[BlackElo "2274"]
[Result "0-1"]
[Round "09"]
[TimeControl "180+2"]
[Date "2023.05.09"]
[WhiteClock "0:00:04"]
[BlackClock "0:00:21"]

1. d4 {[%clk 0:02:55]}  Nf6 {[%clk 0:02:59]} 2. c4 {[%clk 0:02:56]}  g6 {[%clk 0:02:59]} 3. h4 {[%clk 0:02:57]}  c5 {[%clk 0:02:58]} 4. d5 {[%clk 0:02:57]}  e6 {[%clk 0:02:58]} 5. Nc3 {[%clk 0:02:57]}  exd5 {[%clk 0:02:58]} 6. cxd5 {[%clk 0:02:57]}  Bg7 {[%clk 0:02:57]} 7. e4 {[%clk 0:02:57]}  d6 {[%clk 0:02:57]} 8. Be2 {[%clk 0:02:55]}  O-O {[%clk 0:02:57]} 9. h5 {[%clk 0:02:56]}  Re8 {[%clk 0:02:57]} 10. h6 {[%clk 0:02:55]}  Bh8 {[%clk 0:02:56]} 11. f3 {[%clk 0:02:56]}  a6 {[%clk 0:02:51]} 12. a4 {[%clk 0:02:56]}  Nbd7 {[%clk 0:02:43]} 13. Nh3 {[%clk 0:02:54]}  Rb8 {[%clk 0:02:41]} 14. Ng5 {[%clk 0:02:49]}  Nh5 {[%clk 0:02:36]} 15. Rxh5 {[%clk 0:02:33]}  gxh5 {[%clk 0:02:36]} 16. f4 {[%clk 0:02:25]}  Nf6 {[%clk 0:02:36]} 17. Bxh5 {[%clk 0:02:22]}  Nxh5 {[%clk 0:02:36]} 18. Qxh5 {[%clk 0:02:23]}  Qf6 {[%clk 0:02:36]} 19. Bd2 {[%clk 0:01:42]}  Qg6 {[%clk 0:02:35]} 20. Qh4 {[%clk 0:01:11]}  Bd7 {[%clk 0:02:34]} 21. O-O-O {[%clk 0:01:07]}  b5 {[%clk 0:02:30]} 22. f5 {[%clk 0:00:15]}  Bxf5 {[%clk 0:02:15]} 23. exf5 {[%clk 0:00:15]}  Qxf5 {[%clk 0:02:16]} 24. Qg3 {[%clk 0:00:15]}  Be5 {[%clk 0:02:11]} 25. Qh4 {[%clk 0:00:11]}  Bf6 {[%clk 0:01:54]} 26. Qf4 {[%clk 0:00:09]}  Qxf4 {[%clk 0:01:49]} 27. Bxf4 {[%clk 0:00:09]}  Be5 {[%clk 0:01:49]} 28. Bd2 {[%clk 0:00:08]}  bxa4 {[%clk 0:01:43]} 29. Rf1 {[%clk 0:00:06]}  Rb7 {[%clk 0:01:39]} 30. Nge4 {[%clk 0:00:07]}  Reb8 {[%clk 0:01:36]} 31. Bf4 {[%clk 0:00:06]}  Bxf4+ {[%clk 0:01:31]} 32. Rxf4 {[%clk 0:00:06]}  Rxb2 {[%clk 0:01:31]} 33. Nxd6 {[%clk 0:00:06]}  a3 {[%clk 0:01:23]} 34. Ra4 {[%clk 0:00:05]}  Rxg2 {[%clk 0:01:17]} 35. Rxa3 {[%clk 0:00:05]}  Rg6 {[%clk 0:01:14]} 36. Nf5 {[%clk 0:00:05]}  Rf6 {[%clk 0:01:14]} 37. Ne7+ {[%clk 0:00:03]}  Kf8 {[%clk 0:01:14]} 38. Nc6 {[%clk 0:00:03]}  Ra8 {[%clk 0:01:12]} 39. Ne4 {[%clk 0:00:02]}  Rxh6 {[%clk 0:01:11]} 40. Nxc5 {[%clk 0:00:03]}  Rd6 {[%clk 0:01:07]} 41. Rd3 {[%clk 0:00:03]}  Rc8 {[%clk 0:01:05]} 42. Kc2 {[%clk 0:00:01]}  a5 {[%clk 0:01:03]} 43. Kb3 {[%clk 0:00:01]}  h5 {[%clk 0:00:57]} 44. Ka4 {[%clk 0:00:01]}  h4 {[%clk 0:00:57]} 45. Kb5 {[%clk 0:00:01]}  a4 {[%clk 0:00:51]} 46. Kxa4 {[%clk 0:00:01]}  h3 {[%clk 0:00:50]} 47. Ne4 {[%clk 0:00:01]}  Rh6 {[%clk 0:00:49]} 48. Nf2 {[%clk 0:00:02]}  h2 {[%clk 0:00:49]} 49. Rd1 {[%clk 0:00:02]}  Ke8 {[%clk 0:00:46]} 50. Rh1 {[%clk 0:00:01]}  Kd7 {[%clk 0:00:45]} 51. Ng4 {[%clk 0:00:02]}  Rh4 {[%clk 0:00:44]} 52. Ne5+ {[%clk 0:00:03]}  Kd6 {[%clk 0:00:44]} 53. Rxh2 {[%clk 0:00:03]}  Rxh2 {[%clk 0:00:44]} 54. Nxf7+ {[%clk 0:00:02]}  Ke7 {[%clk 0:00:43]} 55. Nxh2 {[%clk 0:00:02]}  Kxf7 {[%clk 0:00:44]} 56. Kb4 {[%clk 0:00:02]}  Ke7 {[%clk 0:00:23]} 57. Ng4 {[%clk 0:00:02]}  Kd6 {[%clk 0:00:21]} 58. Ne3 {[%clk 0:00:03]}  Re8 {[%clk 0:00:20]} 59. Nc4+ {[%clk 0:00:03]}  Kxd5 {[%clk 0:00:21]} 60. Kc3 {[%clk 0:00:04]}  Rc8 {[%clk 0:00:21]} 61. Kd3 {[%clk 0:00:04]}  Rxc4 {[%clk 0:00:21]} 62. Ke3 {[%clk 0:00:04]}  Rd4 {[%clk 0:00:21]} 0-1


[Site "https://www.chess.com"]

[Event "Titled Tuesday Blitz May 9 Late 2023"]
[White "lluiss"]
[Black "Martic, Ivan"]
[BlackFideId "929301"]
[WhiteElo "2299"]
[BlackElo "2360"]
[Result "0-1"]
[Round "09"]
[TimeControl "180+2"]
[Date "2023.05.09"]
[WhiteClock "0:00:06"]
[BlackClock "0:00:56"]

1. Nf3 {[%clk 0:03:00]}  d5 {[%clk 0:02:56]} 2. d4 {[%clk 0:02:58]}  Nc6 {[%clk 0:02:56]} 3. c4 {[%clk 0:02:58]}  Bg4 {[%clk 0:02:55]} 4. cxd5 {[%clk 0:02:56]}  Bxf3 {[%clk 0:02:55]} 5. gxf3 {[%clk 0:02:49]}  Qxd5 {[%clk 0:02:54]} 6. e3 {[%clk 0:02:48]}  e5 {[%clk 0:02:55]} 7. Nc3 {[%clk 0:02:48]}  Bb4 {[%clk 0:02:55]} 8. Bd2 {[%clk 0:02:48]}  Bxc3 {[%clk 0:02:56]} 9. bxc3 {[%clk 0:02:48]}  Nf6 {[%clk 0:02:55]} 10. Bg2 {[%clk 0:02:29]}  O-O-O {[%clk 0:02:42]} 11. O-O {[%clk 0:02:25]}  Qd6 {[%clk 0:02:38]} 12. Rb1 {[%clk 0:02:22]}  b6 {[%clk 0:02:23]} 13. Qa4 {[%clk 0:02:10]}  Rhe8 {[%clk 0:02:10]} 14. Rfd1 {[%clk 0:01:57]}  e4 {[%clk 0:01:54]} 15. c4 {[%clk 0:01:35]}  h5 {[%clk 0:01:41]} 16. c5 {[%clk 0:01:25]}  Qd7 {[%clk 0:01:38]} 17. cxb6 {[%clk 0:01:15]}  axb6 {[%clk 0:01:36]} 18. Rdc1 {[%clk 0:00:51]}  Kb7 {[%clk 0:01:30]} 19. Bh3 {[%clk 0:00:43]}  Qd5 {[%clk 0:01:27]} 20. Rc5 {[%clk 0:00:29]}  Qd6 {[%clk 0:01:23]} 21. Rbc1 {[%clk 0:00:27]}  bxc5 {[%clk 0:01:01]} 22. Qb5+ {[%clk 0:00:23]}  Ka8 {[%clk 0:01:00]} 23. Rxc5 {[%clk 0:00:16]}  Na7 {[%clk 0:00:58]} 24. Ba5 {[%clk 0:00:06]}  Nxb5 {[%clk 0:00:56]} 0-1


[Site "https://www.chess.com"]

[Event "Titled Tuesday Blitz May 9 Late 2023"]
[White "Nastase, Robert-Paul"]
[Black "Prydun, Andriy"]
[WhiteFideId "1221175"]
[BlackFideId "14145898"]
[WhiteElo "2175"]
[BlackElo "2164"]
[Result "1-0"]
[Round "09"]
[TimeControl "180+2"]
[Date "2023.05.09"]
[WhiteClock "0:00:09"]
[BlackClock "0:00:00"]

1. e4 {[%clk 0:02:59]}  d6 {[%clk 0:02:49]} 2. d4 {[%clk 0:02:58]}  Bd7 {[%clk 0:02:40]} 3. Bc4 {[%clk 0:02:55]}  Qc8 {[%clk 0:02:37]} 4. Nf3 {[%clk 0:02:53]}  Be6 {[%clk 0:02:36]} 5. Bb3 {[%clk 0:02:33]}  Nf6 {[%clk 0:02:34]} 6. Nc3 {[%clk 0:02:30]}  g6 {[%clk 0:02:13]} 7. O-O {[%clk 0:02:25]}  Bg7 {[%clk 0:02:13]} 8. h3 {[%clk 0:02:07]}  O-O {[%clk 0:02:12]} 9. d5 {[%clk 0:02:04]}  Bd7 {[%clk 0:02:10]} 10. Bf4 {[%clk 0:02:03]}  e5 {[%clk 0:02:10]} 11. dxe6 {[%clk 0:01:57]}  Bxe6 {[%clk 0:02:10]} 12. Qd2 {[%clk 0:01:55]}  Re8 {[%clk 0:02:08]} 13. Rfe1 {[%clk 0:01:53]}  Nc6 {[%clk 0:02:07]} 14. Rad1 {[%clk 0:01:21]}  Bxh3 {[%clk 0:01:48]} 15. gxh3 {[%clk 0:01:19]}  Qxh3 {[%clk 0:01:49]} 16. Nh2 {[%clk 0:01:10]}  Nh5 {[%clk 0:01:42]} 17. Nd5 {[%clk 0:00:37]}  Nd4 {[%clk 0:01:24]} 18. Re3 {[%clk 0:00:31]}  Qh4 {[%clk 0:01:19]} 19. Bg3 {[%clk 0:00:29]}  Nxg3 {[%clk 0:01:01]} 20. fxg3 {[%clk 0:00:30]}  Qh3 {[%clk 0:00:52]} 21. Qg2 {[%clk 0:00:26]}  Qd7 {[%clk 0:00:50]} 22. c3 {[%clk 0:00:21]}  Ne6 {[%clk 0:00:45]} 23. Ng4 {[%clk 0:00:19]}  Qd8 {[%clk 0:00:37]} 24. Rf1 {[%clk 0:00:19]}  Rf8 {[%clk 0:00:18]} 25. Ndf6+ {[%clk 0:00:19]}  Kh8 {[%clk 0:00:17]} 26. Qh3 {[%clk 0:00:18]}  h5 {[%clk 0:00:17]} 27. Kg2 {[%clk 0:00:09]}  Nc5 {[%clk 0:00:04]} 28. Nxh5 {[%clk 0:00:07]}  gxh5 {[%clk 0:00:03]} 29. Qxh5+ {[%clk 0:00:08]}  Kg8 {[%clk 0:00:00]} 30. Rh1 {[%clk 0:00:09]} 1-0


[Site "https://www.chess.com"]

[Event "Titled Tuesday Blitz May 9 Late 2023"]
[White "Villuendas Valero, Adrian"]
[Black "Abdi, Farzad"]
[WhiteFideId "2262460"]
[BlackFideId "2076829"]
[WhiteElo "2328"]
[BlackElo "2270"]
[Result "1-0"]
[Round "09"]
[TimeControl "180+2"]
[Date "2023.05.09"]
[WhiteClock "0:00:44"]
[BlackClock "0:00:00"]

1. d4 {[%clk 0:03:00]}  Nf6 {[%clk 0:02:59]} 2. Bg5 {[%clk 0:03:00]}  Ne4 {[%clk 0:02:57]} 3. Bf4 {[%clk 0:03:00]}  d5 {[%clk 0:02:57]} 4. e3 {[%clk 0:02:58]}  Bf5 {[%clk 0:02:56]} 5. f3 {[%clk 0:02:53]}  Nd6 {[%clk 0:02:55]} 6. g4 {[%clk 0:02:48]}  Bg6 {[%clk 0:02:55]} 7. Nc3 {[%clk 0:02:43]}  e6 {[%clk 0:02:48]} 8. h4 {[%clk 0:02:41]}  h5 {[%clk 0:02:48]} 9. g5 {[%clk 0:02:41]}  Nd7 {[%clk 0:02:38]} 10. Bd3 {[%clk 0:02:37]}  Bxd3 {[%clk 0:02:33]} 11. Qxd3 {[%clk 0:02:38]}  c5 {[%clk 0:02:10]} 12. g6 {[%clk 0:02:20]}  f5 {[%clk 0:02:05]} 13. Bg3 {[%clk 0:02:11]}  Be7 {[%clk 0:01:51]} 14. Nge2 {[%clk 0:02:05]}  Qb6 {[%clk 0:01:28]} 15. Nf4 {[%clk 0:01:50]}  Nc4 {[%clk 0:01:05]} 16. b3 {[%clk 0:01:34]}  Nb2 {[%clk 0:00:33]} 17. Qb5 {[%clk 0:01:29]}  cxd4 {[%clk 0:00:24]} 18. Qxb6 {[%clk 0:01:26]}  axb6 {[%clk 0:00:17]} 19. exd4 {[%clk 0:01:25]}  Bb4 {[%clk 0:00:16]} 20. Ne2 {[%clk 0:01:19]}  Rc8 {[%clk 0:00:15]} 21. Kd2 {[%clk 0:01:11]}  e5 {[%clk 0:00:11]} 22. a3 {[%clk 0:01:07]}  Ba5 {[%clk 0:00:05]} 23. b4 {[%clk 0:01:03]}  Nc4+ {[%clk 0:00:05]} 24. Kc1 {[%clk 0:00:48]}  f4 {[%clk 0:00:05]} 25. Bf2 {[%clk 0:00:46]}  exd4 {[%clk 0:00:02]} 26. Bxd4 {[%clk 0:00:45]}  O-O {[%clk 0:00:00]} 27. bxa5 {[%clk 0:00:44]} 1-0


[Site "https://www.chess.com"]

[Event "Titled Tuesday Blitz May 9 Late 2023"]
[White "Mirzoev, Azer"]
[Black "Bashkansky, Ethan"]
[WhiteFideId "13400304"]
[BlackFideId "2071533"]
[WhiteElo "2525"]
[BlackElo "2342"]
[Result "1-0"]
[Round "09"]
[TimeControl "180+2"]
[Date "2023.05.09"]
[WhiteClock "0:00:12"]
[BlackClock "0:00:09"]

1. e4 {[%clk 0:02:59]}  c6 {[%clk 0:03:00]} 2. Nc3 {[%clk 0:02:59]}  d5 {[%clk 0:03:00]} 3. Nf3 {[%clk 0:02:59]}  dxe4 {[%clk 0:03:00]} 4. Nxe4 {[%clk 0:02:59]}  Bg4 {[%clk 0:03:01]} 5. h3 {[%clk 0:02:57]}  Bxf3 {[%clk 0:03:01]} 6. Qxf3 {[%clk 0:02:56]}  Nd7 {[%clk 0:03:02]} 7. d4 {[%clk 0:02:44]}  e6 {[%clk 0:03:00]} 8. Be3 {[%clk 0:02:39]}  Ngf6 {[%clk 0:02:59]} 9. Nd2 {[%clk 0:02:36]}  Bd6 {[%clk 0:02:53]} 10. O-O-O {[%clk 0:02:34]}  Qa5 {[%clk 0:02:48]} 11. Kb1 {[%clk 0:02:33]}  Qh5 {[%clk 0:02:45]} 12. g4 {[%clk 0:02:28]}  Qd5 {[%clk 0:02:44]} 13. Bg2 {[%clk 0:02:26]}  Qxf3 {[%clk 0:02:44]} 14. Bxf3 {[%clk 0:02:27]}  h5 {[%clk 0:02:35]} 15. Nc4 {[%clk 0:02:19]}  Bc7 {[%clk 0:02:31]} 16. g5 {[%clk 0:02:16]}  Nd5 {[%clk 0:02:28]} 17. Bc1 {[%clk 0:02:11]}  g6 {[%clk 0:02:24]} 18. Ne3 {[%clk 0:02:08]}  O-O {[%clk 0:02:09]} 19. c4 {[%clk 0:02:06]}  Ne7 {[%clk 0:02:06]} 20. d5 {[%clk 0:02:00]}  cxd5 {[%clk 0:02:00]} 21. cxd5 {[%clk 0:02:01]}  exd5 {[%clk 0:02:00]} 22. Nxd5 {[%clk 0:02:00]}  Nxd5 {[%clk 0:02:00]} 23. Bxd5 {[%clk 0:02:01]}  Rab8 {[%clk 0:01:48]} 24. Bxb7 {[%clk 0:01:57]}  Nc5 {[%clk 0:01:23]} 25. Bd5 {[%clk 0:01:56]}  Be5 {[%clk 0:01:10]} 26. Rhe1 {[%clk 0:01:53]}  Rfe8 {[%clk 0:00:46]} 27. f4 {[%clk 0:01:32]}  Bc7 {[%clk 0:00:38]} 28. f5 {[%clk 0:01:31]}  gxf5 {[%clk 0:00:30]} 29. g6 {[%clk 0:01:31]}  Ne6 {[%clk 0:00:29]} 30. Bc4 {[%clk 0:01:19]}  Rbd8 {[%clk 0:00:22]} 31. Rxd8 {[%clk 0:01:01]}  Bxd8 {[%clk 0:00:23]} 32. Re5 {[%clk 0:00:57]}  Bc7 {[%clk 0:00:18]} 33. gxf7+ {[%clk 0:00:56]}  Kxf7 {[%clk 0:00:19]} 34. Rxf5+ {[%clk 0:00:56]}  Kg6 {[%clk 0:00:20]} 35. Bd3 {[%clk 0:00:45]}  Rd8 {[%clk 0:00:14]} 36. Rd5+ {[%clk 0:00:40]}  Kf6 {[%clk 0:00:07]} 37. Rf5+ {[%clk 0:00:38]}  Ke7 {[%clk 0:00:06]} 38. Bc4 {[%clk 0:00:36]}  Rd1 {[%clk 0:00:05]} 39. Kc2 {[%clk 0:00:20]}  Rh1 {[%clk 0:00:05]} 40. Rxh5 {[%clk 0:00:17]}  Nf4 {[%clk 0:00:05]} 41. Bxf4 {[%clk 0:00:16]}  Bxf4 {[%clk 0:00:06]} 42. Rh7+ {[%clk 0:00:16]}  Kd6 {[%clk 0:00:05]} 43. b4 {[%clk 0:00:16]}  Be5 {[%clk 0:00:02]} 44. Kb3 {[%clk 0:00:14]}  Rh2 {[%clk 0:00:03]} 45. a3 {[%clk 0:00:13]}  a5 {[%clk 0:00:03]} 46. bxa5 {[%clk 0:00:13]}  Kc5 {[%clk 0:00:03]} 47. Rh5 {[%clk 0:00:13]}  Kd4 {[%clk 0:00:03]} 48. Bb5 {[%clk 0:00:12]}  Bc7 {[%clk 0:00:02]} 49. a6 {[%clk 0:00:11]}  Rg2 {[%clk 0:00:02]} 50. a7 {[%clk 0:00:11]}  Rg8 {[%clk 0:00:02]} 51. Rh7 {[%clk 0:00:09]}  Bb6 {[%clk 0:00:02]} 52. Bc6 {[%clk 0:00:09]}  Rg3+ {[%clk 0:00:02]} 53. Ka4 {[%clk 0:00:08]}  Bc5 {[%clk 0:00:02]} 54. a8=Q {[%clk 0:00:06]}  Rxa3+ {[%clk 0:00:02]} 55. Kb5 {[%clk 0:00:07]}  Rb3+ {[%clk 0:00:03]} 56. Ka6 {[%clk 0:00:07]}  Ra3+ {[%clk 0:00:03]} 57. Kb7 {[%clk 0:00:07]}  Rxa8 {[%clk 0:00:04]} 58. Kxa8 {[%clk 0:00:07]}  Ke5 {[%clk 0:00:04]} 59. Bb7 {[%clk 0:00:07]}  Be3 {[%clk 0:00:02]} 60. Bc6 {[%clk 0:00:07]}  Kf6 {[%clk 0:00:03]} 61. Kb7 {[%clk 0:00:07]}  Kg6 {[%clk 0:00:03]} 62. Rd7 {[%clk 0:00:07]}  Kg5 {[%clk 0:00:03]} 63. Rd3 {[%clk 0:00:08]}  Bf4 {[%clk 0:00:03]} 64. Rd1 {[%clk 0:00:09]}  Kh4 {[%clk 0:00:03]} 65. Rh1 {[%clk 0:00:08]}  Bg3 {[%clk 0:00:03]} 66. Bd5 {[%clk 0:00:08]}  Bf4 {[%clk 0:00:04]} 67. Kc6 {[%clk 0:00:09]}  Be5 {[%clk 0:00:04]} 68. Kb5 {[%clk 0:00:09]}  Bf4 {[%clk 0:00:05]} 69. Kc4 {[%clk 0:00:10]}  Be5 {[%clk 0:00:06]} 70. Kd3 {[%clk 0:00:11]}  Bf4 {[%clk 0:00:06]} 71. Ke2 {[%clk 0:00:11]}  Bd6 {[%clk 0:00:07]} 72. Kf3 {[%clk 0:00:11]}  Bc7 {[%clk 0:00:07]} 73. Be6 {[%clk 0:00:11]}  Bd6 {[%clk 0:00:07]} 74. Bd7 {[%clk 0:00:12]}  Bc7 {[%clk 0:00:07]} 75. Bg4 {[%clk 0:00:13]}  Bd6 {[%clk 0:00:08]} 76. Rb1 {[%clk 0:00:13]}  Kg5 {[%clk 0:00:03]} 77. Rb7 {[%clk 0:00:14]}  Kg6 {[%clk 0:00:02]} 78. Rb6 {[%clk 0:00:14]}  Kg5 {[%clk 0:00:01]} 79. Rxd6 {[%clk 0:00:14]}  Kh4 {[%clk 0:00:01]} 80. Rh6+ {[%clk 0:00:13]}  Kg5 {[%clk 0:00:02]} 81. Rh5+ {[%clk 0:00:13]}  Kg6 {[%clk 0:00:03]} 82. Rd5 {[%clk 0:00:14]}  Kg7 {[%clk 0:00:03]} 83. h4 {[%clk 0:00:14]}  Kg6 {[%clk 0:00:04]} 84. h5+ {[%clk 0:00:15]}  Kh6 {[%clk 0:00:05]} 85. Kg3 {[%clk 0:00:15]}  Kg7 {[%clk 0:00:05]} 86. Kh4 {[%clk 0:00:16]}  Kh6 {[%clk 0:00:05]} 87. Rb5 {[%clk 0:00:15]}  Kh7 {[%clk 0:00:06]} 88. Rb6 {[%clk 0:00:15]}  Kg7 {[%clk 0:00:07]} 89. Bf5 {[%clk 0:00:14]}  Kf7 {[%clk 0:00:07]} 90. Kg4 {[%clk 0:00:15]}  Kg7 {[%clk 0:00:07]} 91. Kg5 {[%clk 0:00:15]}  Kh8 {[%clk 0:00:08]} 92. h6 {[%clk 0:00:14]}  Kg8 {[%clk 0:00:09]} 93. Bg6 {[%clk 0:00:14]}  Kf8 {[%clk 0:00:09]} 94. Kf6 {[%clk 0:00:13]}  Kg8 {[%clk 0:00:09]} 95. Rb8# {[%clk 0:00:12]} 1-0


[Site "https://www.chess.com"]

[Event "Titled Tuesday Blitz May 9 Late 2023"]
[White "Dragomirescu, Robin-Alexandru"]
[Black "Fathy, Elameir"]
[WhiteFideId "1213849"]
[BlackFideId "10600396"]
[WhiteElo "2356"]
[BlackElo "2311"]
[Result "0-1"]
[Round "09"]
[TimeControl "180+2"]
[Date "2023.05.09"]
[WhiteClock "0:02:07"]
[BlackClock "0:00:50"]

1. b3 {[%clk 0:02:49]}  d5 {[%clk 0:02:49]} 2. Bb2 {[%clk 0:02:50]}  Bf5 {[%clk 0:02:47]} 3. e3 {[%clk 0:02:49]}  e6 {[%clk 0:02:44]} 4. Nf3 {[%clk 0:02:50]}  h6 {[%clk 0:02:41]} 5. c4 {[%clk 0:02:50]}  c6 {[%clk 0:02:41]} 6. Nc3 {[%clk 0:02:51]}  Nf6 {[%clk 0:02:42]} 7. d4 {[%clk 0:02:48]}  Be7 {[%clk 0:02:42]} 8. Bd3 {[%clk 0:02:49]}  O-O {[%clk 0:02:39]} 9. Bxf5 {[%clk 0:02:49]}  exf5 {[%clk 0:02:39]} 10. Ne5 {[%clk 0:02:49]}  Nbd7 {[%clk 0:02:38]} 11. O-O {[%clk 0:02:49]}  Bd6 {[%clk 0:02:37]} 12. Nxd7 {[%clk 0:02:48]}  Qxd7 {[%clk 0:02:36]} 13. cxd5 {[%clk 0:02:49]}  Nxd5 {[%clk 0:02:36]} 14. Nxd5 {[%clk 0:02:48]}  cxd5 {[%clk 0:02:37]} 15. Qf3 {[%clk 0:02:45]}  Qe6 {[%clk 0:02:30]} 16. Rac1 {[%clk 0:02:38]}  Rac8 {[%clk 0:02:28]} 17. g3 {[%clk 0:02:36]}  Qe4 {[%clk 0:02:25]} 18. Qxe4 {[%clk 0:02:32]}  fxe4 {[%clk 0:02:24]} 19. Rxc8 {[%clk 0:02:31]}  Rxc8 {[%clk 0:02:23]} 20. Rc1 {[%clk 0:02:32]}  Rxc1+ {[%clk 0:02:23]} 21. Bxc1 {[%clk 0:02:32]}  Kf8 {[%clk 0:02:17]} 22. f3 {[%clk 0:02:30]}  f5 {[%clk 0:02:13]} 23. g4 {[%clk 0:02:30]}  exf3 {[%clk 0:01:59]} 24. gxf5 {[%clk 0:02:29]}  Kf7 {[%clk 0:01:57]} 25. h3 {[%clk 0:02:28]}  Bg3 {[%clk 0:01:57]} 26. Ba3 {[%clk 0:02:24]}  Kf6 {[%clk 0:01:55]} 27. Bf8 {[%clk 0:02:25]}  h5 {[%clk 0:01:46]} 28. Kf1 {[%clk 0:02:24]}  Kxf5 {[%clk 0:01:24]} 29. Bxg7 {[%clk 0:02:23]}  Kg5 {[%clk 0:01:12]} 30. Be5 {[%clk 0:02:17]}  Kh4 {[%clk 0:00:49]} 31. Bxg3+ {[%clk 0:02:03]}  Kxg3 {[%clk 0:00:50]} 32. e4 {[%clk 0:02:04]}  dxe4 {[%clk 0:00:50]} 33. d5 {[%clk 0:02:05]}  e3 {[%clk 0:00:50]} 34. d6 {[%clk 0:02:06]}  e2+ {[%clk 0:00:51]} 35. Ke1 {[%clk 0:02:06]}  f2+ {[%clk 0:00:49]} 36. Kxe2 {[%clk 0:02:07]}  Kg2 {[%clk 0:00:50]} 37. d7 {[%clk 0:02:07]}  f1=Q+ {[%clk 0:00:50]} 0-1


[Site "https://www.chess.com"]

[Event "Titled Tuesday Blitz May 9 Late 2023"]
[White "D`Arruda, Ricardo D."]
[Black "Georg, Heinz"]
[WhiteFideId "100692"]
[BlackFideId "4607295"]
[WhiteElo "2411"]
[BlackElo "2307"]
[Result "1-0"]
[Round "09"]
[TimeControl "180+2"]
[Date "2023.05.09"]
[WhiteClock "0:00:55"]
[BlackClock "0:00:23"]

1. e4 {[%clk 0:02:20]}  c5 {[%clk 0:02:59]} 2. Nf3 {[%clk 0:02:19]}  Nc6 {[%clk 0:02:59]} 3. d4 {[%clk 0:02:19]}  cxd4 {[%clk 0:03:00]} 4. Nxd4 {[%clk 0:02:19]}  Nf6 {[%clk 0:03:01]} 5. Nc3 {[%clk 0:02:18]}  d6 {[%clk 0:03:01]} 6. Be2 {[%clk 0:02:15]}  e6 {[%clk 0:02:55]} 7. Be3 {[%clk 0:02:16]}  Be7 {[%clk 0:02:54]} 8. O-O {[%clk 0:02:15]}  a6 {[%clk 0:02:54]} 9. f4 {[%clk 0:02:15]}  O-O {[%clk 0:02:52]} 10. Qd2 {[%clk 0:02:12]}  Nxd4 {[%clk 0:02:48]} 11. Bxd4 {[%clk 0:02:13]}  b5 {[%clk 0:02:45]} 12. Bf3 {[%clk 0:02:11]}  Rb8 {[%clk 0:02:15]} 13. a3 {[%clk 0:02:09]}  Bb7 {[%clk 0:02:10]} 14. Rad1 {[%clk 0:02:07]}  Qc7 {[%clk 0:02:06]} 15. Qe3 {[%clk 0:02:01]}  e5 {[%clk 0:01:47]} 16. Ba7 {[%clk 0:01:55]}  Rbc8 {[%clk 0:01:43]} 17. f5 {[%clk 0:01:53]}  Qc4 {[%clk 0:01:31]} 18. Kh1 {[%clk 0:01:48]}  Rfd8 {[%clk 0:01:19]} 19. Rd3 {[%clk 0:01:41]}  d5 {[%clk 0:01:11]} 20. b3 {[%clk 0:01:25]}  d4 {[%clk 0:00:56]} 21. bxc4 {[%clk 0:01:23]}  dxe3 {[%clk 0:00:56]} 22. Rxd8+ {[%clk 0:01:12]}  Bxd8 {[%clk 0:00:50]} 23. Nd5 {[%clk 0:01:11]}  Rxc4 {[%clk 0:00:42]} 24. Nxe3 {[%clk 0:01:07]}  Rc3 {[%clk 0:00:39]} 25. Rd1 {[%clk 0:01:07]}  Be7 {[%clk 0:00:33]} 26. Nd5 {[%clk 0:00:58]}  Kf8 {[%clk 0:00:23]} 27. Nxc3 {[%clk 0:00:55]} 1-0


[Site "https://www.chess.com"]